[Event "Late-Titled-Tuesday-Blitz-January-16-2024"]
[Site "Chess.com"]
[Date "2024.01.16"]
[Round "7"]
[White "agvega14"]
[Black "AkatsukiLogHorizon"]
[Result "1/2-1/2"]
[WhiteElo "2137"]
[BlackElo "2263"]
[TimeControl "180+1"]
[EndTime "15:19:37 PST"]
[Termination "Game drawn by repetition"]

1. e4 {[%clk 0:03:00.9]} 1... c6 {[%clk 0:02:56.4]} 2. d4 {[%clk 0:02:59.3]}
2... d5 {[%clk 0:02:52.2]} 3. exd5 {[%clk 0:03:00.2]} 3... cxd5 {[%clk
0:02:49.2]} 4. Bd3 {[%clk 0:02:53.7]} 4... Nf6 {[%clk 0:02:49.1]} 5. c3 {[%clk
0:02:53.2]} 5... g6 {[%clk 0:02:47.6]} 6. h3 {[%clk 0:02:52.3]} 6... Bg7 {[%clk
0:02:47.4]} 7. Nf3 {[%clk 0:02:53]} 7... Nc6 {[%clk 0:02:46.5]} 8. Bf4 {[%clk
0:02:53.5]} 8... O-O {[%clk 0:02:45.7]} 9. O-O {[%clk 0:02:53.6]} 9... Bd7
{[%clk 0:02:45.1]} 10. Re1 {[%clk 0:02:53.7]} 10... Re8 {[%clk 0:02:45.3]} 11.
Ne5 {[%clk 0:02:39.3]} 11... Nxe5 {[%clk 0:02:44.4]} 12. Bxe5 {[%clk 0:02:37.6]}
12... Nh5 {[%clk 0:02:44.1]} 13. Bxg7 {[%clk 0:02:37.1]} 13... Kxg7 {[%clk
0:02:43.3]} 14. Nd2 {[%clk 0:02:36.1]} 14... Qc7 {[%clk 0:02:41.5]} 15. Nf3
{[%clk 0:02:33.5]} 15... Nf6 {[%clk 0:02:38]} 16. Ne5 {[%clk 0:02:31.9]} 16...
e6 {[%clk 0:02:33.2]} 17. Qf3 {[%clk 0:02:31.2]} 17... Bc6 {[%clk 0:02:30.3]}
18. Re3 {[%clk 0:02:13.6]} 18... Ne4 {[%clk 0:02:28.5]} 19. Nxc6 {[%clk
0:01:56.6]} 19... Qxc6 {[%clk 0:02:24.4]} 20. Bxe4 {[%clk 0:01:56.1]} 20... dxe4
{[%clk 0:02:24.8]} 21. Qxe4 {[%clk 0:01:56.1]} 21... Qb6 {[%clk 0:02:24.8]} 22.
b3 {[%clk 0:01:47.5]} 22... f6 {[%clk 0:02:24]} 23. c4 {[%clk 0:01:40.9]} 23...
e5 {[%clk 0:02:23.3]} 24. d5 {[%clk 0:01:39.5]} 24... f5 {[%clk 0:02:22.3]} 25.
Qf3 {[%clk 0:01:31]} 25... e4 {[%clk 0:02:18.7]} 26. Qf4 {[%clk 0:01:27.4]}
26... Qd4 {[%clk 0:02:14.6]} 27. Rae1 {[%clk 0:01:26.7]} 27... b5 {[%clk
0:02:12.8]} 28. Qc7+ {[%clk 0:01:04.2]} 28... Kg8 {[%clk 0:02:10.3]} 29. d6
{[%clk 0:00:50.6]} 29... bxc4 {[%clk 0:02:04.7]} 30. Qxc4+ {[%clk 0:00:45.4]}
30... Qxc4 {[%clk 0:02:04.6]} 31. bxc4 {[%clk 0:00:46.3]} 31... Red8 {[%clk
0:02:04.5]} 32. c5 {[%clk 0:00:45.9]} 32... Rac8 {[%clk 0:02:04.6]} 33. Ra3
{[%clk 0:00:28.5]} 33... Rxc5 {[%clk 0:02:03.8]} 34. Rd1 {[%clk 0:00:27.8]}
34... Rc6 {[%clk 0:02:02.8]} 35. Rxa7 {[%clk 0:00:26.2]} 35... Rdxd6 {[%clk
0:02:02.5]} 36. Rxd6 {[%clk 0:00:25.5]} 36... Rxd6 {[%clk 0:02:02.7]} 37. a4
{[%clk 0:00:25.1]} 37... h6 {[%clk 0:02:01.2]} 38. h4 {[%clk 0:00:24.6]} 38...
Kf8 {[%clk 0:02:01.4]} 39. a5 {[%clk 0:00:24.7]} 39... Ke8 {[%clk 0:02:01.1]}
40. g3 {[%clk 0:00:24.4]} 40... Kd8 {[%clk 0:02:01.3]} 41. a6 {[%clk 0:00:24.8]}
41... Kc8 {[%clk 0:02:00.5]} 42. Ra8+ {[%clk 0:00:24.7]} 42... Kc7 {[%clk
0:01:59.5]} 43. a7 {[%clk 0:00:21.9]} 43... Kb7 {[%clk 0:01:58.7]} 44. Rh8
{[%clk 0:00:20.5]} 44... Kxa7 {[%clk 0:01:58.7]} 45. Rxh6 {[%clk 0:00:20.5]}
45... Rb6 {[%clk 0:01:55.8]} 46. Kg2 {[%clk 0:00:19.5]} 46... Kb7 {[%clk
0:01:56]} 47. h5 {[%clk 0:00:19.8]} 47... gxh5 {[%clk 0:01:55]} 48. Rxh5 {[%clk
0:00:19.6]} 48... Rf6 {[%clk 0:01:54.5]} 49. Rg5 {[%clk 0:00:17.7]} 49... Kc6
{[%clk 0:01:54.7]} 50. g4 {[%clk 0:00:14.9]} 50... fxg4 {[%clk 0:01:50.8]} 51.
Rxg4 {[%clk 0:00:15]} 51... Kd5 {[%clk 0:01:50.4]} 52. Rg3 {[%clk 0:00:14.1]}
52... Kd4 {[%clk 0:01:49.4]} 53. Re3 {[%clk 0:00:14.1]} 53... Rg6+ {[%clk
0:01:49]} 54. Kf1 {[%clk 0:00:14.3]} 54... Ra6 {[%clk 0:01:46.9]} 55. Kg2 {[%clk
0:00:14.3]} 55... Ra2 {[%clk 0:01:46.6]} 56. Kg3 {[%clk 0:00:13.1]} 56... Ra6
{[%clk 0:01:45.7]} 57. Kg2 {[%clk 0:00:12.5]} 57... Rf6 {[%clk 0:01:45.3]} 58.
Rg3 {[%clk 0:00:11]} 58... Rf5 {[%clk 0:01:43.2]} 59. Re3 {[%clk 0:00:10.3]}
59... Rg5+ {[%clk 0:01:42.4]} 60. Rg3 {[%clk 0:00:10.5]} 60... Rh5 {[%clk
0:01:40.4]} 61. Re3 {[%clk 0:00:10]} 61... Rh6 {[%clk 0:01:36.3]} 62. Rg3 {[%clk
0:00:09.9]} 62... Ke5 {[%clk 0:01:35.4]} 63. Re3 {[%clk 0:00:10.2]} 63... Kf4
{[%clk 0:01:34.6]} 64. Rg3 {[%clk 0:00:10.6]} 64... Rf6 {[%clk 0:01:31.8]} 65.
Rg8 {[%clk 0:00:10.5]} 65... Rf5 {[%clk 0:01:30]} 66. Re8 {[%clk 0:00:10.4]}
66... Rg5+ {[%clk 0:01:29.1]} 67. Kf1 {[%clk 0:00:10.5]} 67... Rf5 {[%clk
0:01:24.3]} 68. Re7 {[%clk 0:00:09.9]} 68... Kf3 {[%clk 0:01:24.3]} 69. Rg7
{[%clk 0:00:06.5]} 69... Rh5 {[%clk 0:01:23.6]} 70. Rg3+ {[%clk 0:00:06.2]}
70... Kf4 {[%clk 0:01:23.4]} 71. Ke2 {[%clk 0:00:06.8]} 71... Rh2 {[%clk
0:01:22.9]} 72. Re3 {[%clk 0:00:06.6]} 72... Rg2 {[%clk 0:01:22.4]} 73. Rc3
{[%clk 0:00:06.2]} 73... Rg1 {[%clk 0:01:20.9]} 74. Re3 {[%clk 0:00:06.5]} 74...
Ra1 {[%clk 0:01:20]} 75. Rc3 {[%clk 0:00:06.5]} 75... Ra2+ {[%clk 0:01:19.7]}
76. Kf1 {[%clk 0:00:07]} 76... Ra5 {[%clk 0:01:17.5]} 77. Re3 {[%clk 0:00:07.5]}
77... Rd5 {[%clk 0:01:17.4]} 78. Kg2 {[%clk 0:00:07.7]} 78... Rd3 {[%clk
0:01:17.1]} 79. Rg3 {[%clk 0:00:06.6]} 79... Rd2 {[%clk 0:01:00.6]} 80. Re3
{[%clk 0:00:05.8]} 80... Rd3 {[%clk 0:00:59.6]} 81. Re1 {[%clk 0:00:06]} 81...
Rf3 {[%clk 0:00:58.6]} 82. Re2 {[%clk 0:00:05.9]} 82... Ra3 {[%clk 0:00:57.3]}
83. Re1 {[%clk 0:00:06.2]} 83... Ra2 {[%clk 0:00:57.4]} 84. Re3 {[%clk
0:00:06.5]} 84... Ra8 {[%clk 0:00:57.3]} 85. Re2 {[%clk 0:00:06.5]} 85... Rg8+
{[%clk 0:00:56.9]} 86. Kf1 {[%clk 0:00:06.7]} 86... Rg6 {[%clk 0:00:56]} 87. Re3
{[%clk 0:00:07]} 87... Rh6 {[%clk 0:00:55.8]} 88. Ke2 {[%clk 0:00:06.9]} 88...
Rh2 {[%clk 0:00:55.8]} 89. Rg3 {[%clk 0:00:06.4]} 89... Rh1 {[%clk 0:00:52.7]}
90. Re3 {[%clk 0:00:06.2]} 90... Ra1 {[%clk 0:00:52.2]} 91. Rg3 {[%clk
0:00:06.3]} 91... Ra2+ {[%clk 0:00:52.5]} 92. Kf1 {[%clk 0:00:06]} 92... Rd2
{[%clk 0:00:51.4]} 93. Ke1 {[%clk 0:00:06]} 93... Rd4 {[%clk 0:00:49.7]} 94. Re3
{[%clk 0:00:06.1]} 94... Rc4 {[%clk 0:00:48.2]} 95. Rg3 {[%clk 0:00:06]} 95...
Rc1+ {[%clk 0:00:47.2]} 96. Ke2 {[%clk 0:00:06.3]} 96... Rc2+ {[%clk 0:00:47.3]}
97. Ke1 {[%clk 0:00:06.4]} 97... Rc1+ {[%clk 0:00:46.8]} 98. Ke2 {[%clk
0:00:06.8]} 98... Rh1 {[%clk 0:00:46.8]} 99. Re3 {[%clk 0:00:06.2]} 99... Rh2
{[%clk 0:00:46.9]} 100. Rg3 {[%clk 0:00:06]} 100... Rh1 {[%clk 0:00:47.1]}
1/2-1/2

[Event "Late-Titled-Tuesday-Blitz-January-16-2024"]
[Site "Chess.com"]
[Date "2024.01.16"]
[Round "7"]
[White "CamillaEffect"]
[Black "lucliasco"]
[Result "1-0"]
[WhiteElo "2575"]
[BlackElo "2851"]
[TimeControl "180+1"]
[EndTime "15:20:42 PST"]
[Termination "CamillaEffect won by resignation"]

1. e4 {[%clk 0:03:00.9]} 1... e5 {[%clk 0:02:59.5]} 2. Nf3 {[%clk 0:03:00.5]}
2... Nc6 {[%clk 0:03:00.4]} 3. Nc3 {[%clk 0:03:00.6]} 3... Nf6 {[%clk
0:03:00.3]} 4. d4 {[%clk 0:03:00.9]} 4... exd4 {[%clk 0:03:00.8]} 5. Nd5 {[%clk
0:03:01.1]} 5... d6 {[%clk 0:02:56.1]} 6. Nxd4 {[%clk 0:03:00.1]} 6... Be7
{[%clk 0:02:55.1]} 7. Nb5 {[%clk 0:02:59.8]} 7... O-O {[%clk 0:02:54.9]} 8.
Nbxc7 {[%clk 0:02:54.7]} 8... Nxd5 {[%clk 0:02:50.5]} 9. Nxd5 {[%clk 0:02:51.2]}
9... Be6 {[%clk 0:02:49.7]} 10. Be2 {[%clk 0:02:40.7]} 10... Bxd5 {[%clk
0:02:49.7]} 11. Qxd5 {[%clk 0:02:41.6]} 11... Rc8 {[%clk 0:02:30]} 12. c3 {[%clk
0:02:38.2]} 12... Ne5 {[%clk 0:02:26.5]} 13. O-O {[%clk 0:02:29.4]} 13... Qc7
{[%clk 0:02:22.9]} 14. f4 {[%clk 0:02:17.5]} 14... Nd7 {[%clk 0:02:19.4]} 15.
Be3 {[%clk 0:02:13.3]} 15... Nf6 {[%clk 0:02:19.1]} 16. Qd4 {[%clk 0:02:11.8]}
16... b6 {[%clk 0:02:18.5]} 17. Rad1 {[%clk 0:02:07.5]} 17... Rcd8 {[%clk
0:02:16.3]} 18. h3 {[%clk 0:02:07.5]} 18... d5 {[%clk 0:02:15.4]} 19. e5 {[%clk
0:02:03.5]} 19... Bc5 {[%clk 0:02:15.4]} 20. Qd3 {[%clk 0:02:04]} 20... Ne4
{[%clk 0:02:14.4]} 21. Bf3 {[%clk 0:01:58.9]} 21... f5 {[%clk 0:02:06]} 22. exf6
{[%clk 0:01:54]} 22... Nxf6 {[%clk 0:02:04.5]} 23. Bd4 {[%clk 0:01:48.7]} 23...
Bxd4+ {[%clk 0:01:59.7]} 24. Qxd4 {[%clk 0:01:47.8]} 24... Rfe8 {[%clk
0:01:58.9]} 25. Rfe1 {[%clk 0:01:46.9]} 25... Qd7 {[%clk 0:01:42.5]} 26. Re5
{[%clk 0:01:44.6]} 26... Qb5 {[%clk 0:01:38.5]} 27. Bxd5+ {[%clk 0:01:32.2]}
27... Kh8 {[%clk 0:01:06.4]} 28. c4 {[%clk 0:01:15.1]} 28... Qa4 {[%clk
0:00:58.5]} 29. a3 {[%clk 0:00:55.6]} 29... Qc2 {[%clk 0:00:57.7]} 30. Rd2
{[%clk 0:00:50.6]} 30... Qc1+ {[%clk 0:00:57.2]} 31. Rd1 {[%clk 0:00:49.9]}
31... Qc2 {[%clk 0:00:57.4]} 32. Qd2 {[%clk 0:00:49.5]} 32... Qb3 {[%clk
0:00:51.2]} 33. Rde1 {[%clk 0:00:35.3]} 33... Rf8 {[%clk 0:00:51.4]} 34. R1e3
{[%clk 0:00:28.2]} 34... Qxc4 {[%clk 0:00:47.1]} 35. Bxc4 {[%clk 0:00:26.6]}
35... Rxd2 {[%clk 0:00:48]} 36. Re7 {[%clk 0:00:19.8]} 36... Nh5 {[%clk
0:00:35.5]} 37. Rxa7 {[%clk 0:00:18.3]} 37... Rd4 {[%clk 0:00:26.6]} 38. b3
{[%clk 0:00:13.5]} 38... Rdxf4 {[%clk 0:00:23.8]} 39. Re5 {[%clk 0:00:13.6]}
39... Nf6 {[%clk 0:00:21.1]} 40. Ree7 {[%clk 0:00:13.9]} 40... Nh5 {[%clk
0:00:21.1]} 41. Rab7 {[%clk 0:00:14.1]} 41... R4f6 {[%clk 0:00:20.7]} 42. a4
{[%clk 0:00:13.2]} 42... h6 {[%clk 0:00:20]} 43. Rf7 {[%clk 0:00:12.3]} 43...
R6xf7 {[%clk 0:00:19.3]} 44. Rxf7 {[%clk 0:00:13.2]} 44... Rd8 {[%clk
0:00:18.2]} 45. Rb7 {[%clk 0:00:11.5]} 45... Rd6 {[%clk 0:00:18.5]} 46. b4
{[%clk 0:00:11.9]} 46... Rd4 {[%clk 0:00:15.8]} 47. Rc7 {[%clk 0:00:12.3]} 47...
Nf4 {[%clk 0:00:14.5]} 48. a5 {[%clk 0:00:09.9]} 48... bxa5 {[%clk 0:00:15.4]}
49. bxa5 {[%clk 0:00:10.8]} 49... Rd1+ {[%clk 0:00:16.2]} 50. Kh2 {[%clk
0:00:07.8]} 50... Rd2 {[%clk 0:00:16.6]} 51. a6 {[%clk 0:00:06.6]} 51... Rxg2+
{[%clk 0:00:15.1]} 52. Kh1 {[%clk 0:00:07.2]} 52... Rg3 {[%clk 0:00:09.4]} 53.
a7 {[%clk 0:00:04.7]} 53... Rxh3+ {[%clk 0:00:10]} 54. Kg1 {[%clk 0:00:04.9]}
54... Rg3+ {[%clk 0:00:09.7]} 55. Kf2 {[%clk 0:00:05.4]} 55... Ra3 {[%clk
0:00:10.6]} 56. Rc8+ {[%clk 0:00:05.4]} 56... Kh7 {[%clk 0:00:11.2]} 57. a8=Q
{[%clk 0:00:06.1]} 57... Rxa8 {[%clk 0:00:11.2]} 58. Rxa8 {[%clk 0:00:07]} 58...
g5 {[%clk 0:00:11.8]} 59. Kg3 {[%clk 0:00:07]} 59... Kg6 {[%clk 0:00:12]} 60.
Ra6+ {[%clk 0:00:06.4]} 60... Kg7 {[%clk 0:00:12.2]} 61. Ba2 {[%clk 0:00:05.8]}
61... Nh5+ {[%clk 0:00:11.7]} 62. Kg2 {[%clk 0:00:05.6]} 62... Nf4+ {[%clk
0:00:12.2]} 63. Kh2 {[%clk 0:00:06.3]} 63... h5 {[%clk 0:00:12]} 64. Bb1 {[%clk
0:00:06.9]} 64... g4 {[%clk 0:00:12]} 65. Bf5 {[%clk 0:00:07]} 65... Ne2 {[%clk
0:00:11.1]} 66. Bc8 {[%clk 0:00:06.1]} 66... Nd4 {[%clk 0:00:09.2]} 67. Kg3
{[%clk 0:00:06.2]} 67... Ne2+ {[%clk 0:00:09.5]} 68. Kh4 {[%clk 0:00:06.5]}
68... g3 {[%clk 0:00:10.1]} 69. Bf5 {[%clk 0:00:03.6]} 69... Kf7 {[%clk
0:00:05.3]} 70. Be4 {[%clk 0:00:01.7]} 70... Ke7 {[%clk 0:00:01.7]} 71. Bf3
{[%clk 0:00:01.7]} 71... Nc3 {[%clk 0:00:02.6]} 72. Kxg3 {[%clk 0:00:02.1]}
72... Kd8 {[%clk 0:00:03.3]} 73. Ra7 {[%clk 0:00:02.7]} 73... h4+ {[%clk
0:00:04.1]} 74. Kxh4 {[%clk 0:00:03]} 74... Nb5 {[%clk 0:00:05]} 75. Rh7 {[%clk
0:00:03.4]} 75... Nd6 {[%clk 0:00:05.8]} 76. Kh5 {[%clk 0:00:04.2]} 76... Ne8
{[%clk 0:00:06.7]} 77. Rh8 {[%clk 0:00:04.5]} 77... Ke7 {[%clk 0:00:07.1]} 78.
Kg6 {[%clk 0:00:05.4]} 78... Nd6 {[%clk 0:00:07.4]} 79. Rh7+ {[%clk 0:00:05.8]}
79... Ke6 {[%clk 0:00:08.3]} 80. Rh1 {[%clk 0:00:06.3]} 80... Ke5 {[%clk
0:00:09.2]} 81. Bh5 {[%clk 0:00:06.3]} 81... Ne4 {[%clk 0:00:09.4]} 82. Re1
{[%clk 0:00:06.1]} 82... Kf4 {[%clk 0:00:10.1]} 83. Ra1 {[%clk 0:00:06.2]} 83...
Nf2 {[%clk 0:00:10.6]} 84. Ra4+ {[%clk 0:00:06.1]} 84... Ke3 {[%clk 0:00:11.5]}
85. Kg5 {[%clk 0:00:06.1]} 85... Nd3 {[%clk 0:00:11.9]} 86. Kf5 {[%clk
0:00:06.1]} 86... Nf2 {[%clk 0:00:11.5]} 87. Ra3+ {[%clk 0:00:06.3]} 87... Kd4
{[%clk 0:00:12]} 88. Kf4 {[%clk 0:00:05.9]} 88... Nd3+ {[%clk 0:00:12.3]} 89.
Kf5 {[%clk 0:00:05.6]} 89... Nc5 {[%clk 0:00:12.4]} 90. Ra8 {[%clk 0:00:05.8]}
90... Nb7 {[%clk 0:00:12]} 91. Rb8 {[%clk 0:00:05.7]} 91... Nd6+ {[%clk
0:00:11.7]} 92. Ke6 {[%clk 0:00:06.5]} 92... Ne4 {[%clk 0:00:12.2]} 93. Bg6
{[%clk 0:00:05.2]} 93... Nc5+ {[%clk 0:00:13]} 94. Kf5 {[%clk 0:00:05.8]} 94...
Na6 {[%clk 0:00:11.4]} 95. Rd8+ {[%clk 0:00:05.9]} 95... Kc5 {[%clk 0:00:11.9]}
96. Ke5 {[%clk 0:00:06]} 96... Nb4 {[%clk 0:00:11.9]} 97. Rc8+ {[%clk
0:00:05.5]} 97... Nc6+ {[%clk 0:00:12]} 98. Ke6 {[%clk 0:00:06.2]} 98... Kb6
{[%clk 0:00:12.7]} 99. Kd6 {[%clk 0:00:06]} 99... Na5 {[%clk 0:00:13.1]} 100.
Rc1 {[%clk 0:00:05.1]} 100... Kb5 {[%clk 0:00:13.2]} 101. Kd5 {[%clk 0:00:04.9]}
101... Kb4 {[%clk 0:00:13.5]} 102. Bd3 {[%clk 0:00:05.1]} 102... Nb3 {[%clk
0:00:12.8]} 103. Rc4+ {[%clk 0:00:03.8]} 103... Ka3 {[%clk 0:00:13]} 104. Rc8
{[%clk 0:00:03.1]} 104... Kb4 {[%clk 0:00:13.9]} 105. Bc4 {[%clk 0:00:02.7]}
105... Nd2 {[%clk 0:00:14.3]} 106. Kd4 {[%clk 0:00:03.6]} 106... Nf3+ {[%clk
0:00:14.3]} 107. Kd5 {[%clk 0:00:03.3]} 107... Nd2 {[%clk 0:00:14.4]} 108. Be2
{[%clk 0:00:04]} 108... Kb3 {[%clk 0:00:14.1]} 109. Kd4 {[%clk 0:00:04]} 109...
Kb4 {[%clk 0:00:11.8]} 110. Rb8+ {[%clk 0:00:04.3]} 110... Ka5 {[%clk
0:00:12.4]} 111. Kc5 {[%clk 0:00:04.1]} 111... Ne4+ {[%clk 0:00:12.9]} 112. Kc6
{[%clk 0:00:03.7]} 112... Ka4 {[%clk 0:00:12.2]} 113. Bd3 {[%clk 0:00:02.6]}
113... Nf2 {[%clk 0:00:11.6]} 114. Bc4 {[%clk 0:00:02.5]} 114... Ne4 {[%clk
0:00:10.6]} 115. Kd5 {[%clk 0:00:02.6]} 115... Nc3+ {[%clk 0:00:10.4]} 116. Kd4
{[%clk 0:00:03]} 116... Nd1 {[%clk 0:00:10.4]} 117. Kc5 {[%clk 0:00:03.3]}
117... Ka3 {[%clk 0:00:10.3]} 118. Rb3+ {[%clk 0:00:03.4]} 118... Ka2 {[%clk
0:00:10.6]} 119. Rd3+ {[%clk 0:00:03.7]} 119... Kb2 {[%clk 0:00:11.3]} 120. Rxd1
{[%clk 0:00:04.4]} 120... Kc3 {[%clk 0:00:12.2]} 121. Re1 {[%clk 0:00:04.7]} 1-0

[Event "Late-Titled-Tuesday-Blitz-January-16-2024"]
[Site "Chess.com"]
[Date "2024.01.16"]
[Round "8"]
[White "KorolDimitriy75"]
[Black "Bastiandash"]
[Result "1-0"]
[WhiteElo "2373"]
[BlackElo "2499"]
[TimeControl "180+1"]
[EndTime "15:22:30 PST"]
[Termination "KorolDimitriy75 won by resignation"]

1. d4 {[%clk 0:03:00.9]} 1... Nf6 {[%clk 0:02:58.3]} 2. c4 {[%clk 0:03:01.2]}
2... g6 {[%clk 0:02:58.6]} 3. Nc3 {[%clk 0:03:01.8]} 3... d5 {[%clk 0:02:59]} 4.
cxd5 {[%clk 0:03:01.7]} 4... Nxd5 {[%clk 0:02:59.3]} 5. e4 {[%clk 0:03:02.6]}
5... Nxc3 {[%clk 0:02:59.6]} 6. bxc3 {[%clk 0:03:03.5]} 6... Bg7 {[%clk
0:03:00.2]} 7. Nf3 {[%clk 0:03:04]} 7... O-O {[%clk 0:03:01]} 8. Rb1 {[%clk
0:03:04.1]} 8... c5 {[%clk 0:03:01.9]} 9. Be2 {[%clk 0:03:04.5]} 9... cxd4
{[%clk 0:02:58.4]} 10. cxd4 {[%clk 0:03:05.4]} 10... Qa5+ {[%clk 0:02:58.9]} 11.
Qd2 {[%clk 0:03:05.6]} 11... Qxd2+ {[%clk 0:02:59.3]} 12. Bxd2 {[%clk
0:03:06.5]} 12... Nc6 {[%clk 0:02:58.6]} 13. d5 {[%clk 0:03:06.2]} 13... Nd4
{[%clk 0:02:48]} 14. Nxd4 {[%clk 0:03:05.5]} 14... Bxd4 {[%clk 0:02:48.9]} 15.
Bb4 {[%clk 0:03:02.9]} 15... Re8 {[%clk 0:02:41.5]} 16. Bb5 {[%clk 0:03:01.4]}
1-0

[Event "Late-Titled-Tuesday-Blitz-January-16-2024"]
[Site "Chess.com"]
[Date "2024.01.16"]
[Round "8"]
[White "imdarealist"]
[Black "Arteler"]
[Result "0-1"]
[WhiteElo "2292"]
[BlackElo "2477"]
[TimeControl "180+1"]
[EndTime "15:22:44 PST"]
[Termination "Arteler won by resignation"]

1. d4 {[%clk 0:02:59.6]} 1... d5 {[%clk 0:02:59]} 2. Bf4 {[%clk 0:02:59.9]} 2...
c5 {[%clk 0:02:58.9]} 3. e3 {[%clk 0:03:00.1]} 3... Nc6 {[%clk 0:02:59]} 4. c3
{[%clk 0:02:59]} 4... Nf6 {[%clk 0:02:58.1]} 5. Nd2 {[%clk 0:02:59.3]} 5... Bf5
{[%clk 0:02:58.1]} 6. Qb3 {[%clk 0:02:57.2]} 6... Qb6 {[%clk 0:02:54]} 7. dxc5
{[%clk 0:02:57.5]} 7... Qxb3 {[%clk 0:02:45.9]} 8. axb3 {[%clk 0:02:32.2]} 8...
e5 {[%clk 0:02:46]} 9. Bb5 {[%clk 0:02:31.3]} 9... exf4 {[%clk 0:02:45.3]} 10.
exf4 {[%clk 0:02:29.6]} 10... Bxc5 {[%clk 0:02:45.4]} 11. b4 {[%clk 0:02:29.6]}
11... Bb6 {[%clk 0:02:44]} 0-1

[Event "Late-Titled-Tuesday-Blitz-January-16-2024"]
[Site "Chess.com"]
[Date "2024.01.16"]
[Round "8"]
[White "jjbolanos"]
[Black "MusicCityMaster"]
[Result "1-0"]
[WhiteElo "2121"]
[BlackElo "2392"]
[TimeControl "180+1"]
[EndTime "15:23:43 PST"]
[Termination "jjbolanos won by resignation"]

1. e4 {[%clk 0:03:00.9]} 1... e6 {[%clk 0:03:00]} 2. d4 {[%clk 0:02:59.5]} 2...
d5 {[%clk 0:03:00.7]} 3. Bd3 {[%clk 0:02:59.8]} 3... dxe4 {[%clk 0:03:00.4]} 4.
Bxe4 {[%clk 0:03:00.3]} 4... Nf6 {[%clk 0:03:00.7]} 5. Bf3 {[%clk 0:02:59.7]}
5... Nbd7 {[%clk 0:03:00.5]} 6. Ne2 {[%clk 0:02:59.2]} 6... Bd6 {[%clk
0:03:00.8]} 7. O-O {[%clk 0:02:58.8]} 7... e5 {[%clk 0:03:01.3]} 8. Ng3 {[%clk
0:02:51.8]} 8... exd4 {[%clk 0:02:55]} 9. Re1+ {[%clk 0:02:50.7]} 9... Kf8
{[%clk 0:02:41.6]} 10. Qxd4 {[%clk 0:02:44.4]} 10... h6 {[%clk 0:02:37.3]} 11.
Nf5 {[%clk 0:02:39.1]} 11... Bc5 {[%clk 0:02:37.1]} 12. Qh4 {[%clk 0:02:22.4]}
12... g5 {[%clk 0:02:18.6]} 13. Bxg5 {[%clk 0:02:19.2]} 1-0

[Event "Late-Titled-Tuesday-Blitz-January-16-2024"]
[Site "Chess.com"]
[Date "2024.01.16"]
[Round "8"]
[White "Practical-Play"]
[Black "MightyGMpretender"]
[Result "1-0"]
[WhiteElo "2542"]
[BlackElo "2812"]
[TimeControl "180+1"]
[EndTime "15:24:57 PST"]
[Termination "Practical-Play won by resignation"]

1. e4 {[%clk 0:03:00.9]} 1... c5 {[%clk 0:03:00.6]} 2. c3 {[%clk 0:03:00.7]}
2... d5 {[%clk 0:02:59.1]} 3. exd5 {[%clk 0:03:01]} 3... Qxd5 {[%clk 0:03:00]}
4. d4 {[%clk 0:03:01]} 4... g6 {[%clk 0:03:00.6]} 5. Nf3 {[%clk 0:02:59.5]} 5...
Bg7 {[%clk 0:03:00.9]} 6. Na3 {[%clk 0:02:57.2]} 6... cxd4 {[%clk 0:02:55.8]} 7.
Nb5 {[%clk 0:02:55.3]} 7... Qd7 {[%clk 0:02:54.5]} 8. Bf4 {[%clk 0:02:52.3]}
8... Na6 {[%clk 0:02:31.5]} 9. Nbxd4 {[%clk 0:02:51.7]} 9... Qd8 {[%clk
0:02:24.9]} 10. Bb5+ {[%clk 0:02:28.6]} 10... Bd7 {[%clk 0:02:24.5]} 11. Qa4
{[%clk 0:02:19.6]} 11... Nf6 {[%clk 0:02:21.2]} 12. Ne5 {[%clk 0:02:16.2]} 12...
Nc5 {[%clk 0:02:15.3]} 13. Qc4 {[%clk 0:02:14.1]} 13... Ne6 {[%clk 0:01:50.2]}
14. Nxe6 {[%clk 0:02:11.1]} 14... fxe6 {[%clk 0:01:47.6]} 15. Qxe6 {[%clk
0:02:11.3]} 15... Rf8 {[%clk 0:01:41.8]} 16. Nxd7 {[%clk 0:01:45.1]} 16... Nxd7
{[%clk 0:01:41.4]} 17. O-O-O {[%clk 0:01:42.5]} 17... Rxf4 {[%clk 0:01:34.8]}
18. Rxd7 {[%clk 0:01:41.2]} 1-0

[Event "Late-Titled-Tuesday-Blitz-January-16-2024"]
[Site "Chess.com"]
[Date "2024.01.16"]
[Round "8"]
[White "FairChess_on_YouTube"]
[Black "Bigfish1995"]
[Result "1/2-1/2"]
[WhiteElo "3102"]
[BlackElo "3085"]
[TimeControl "180+1"]
[EndTime "15:25:06 PST"]
[Termination "Game drawn by agreement"]

1. Nf3 {[%clk 0:03:00.9]} 1... d5 {[%clk 0:02:50.9]} 2. d4 {[%clk 0:03:00.2]}
2... Nf6 {[%clk 0:02:49.4]} 3. c4 {[%clk 0:03:00.5]} 3... e6 {[%clk 0:02:49.3]}
4. Bg5 {[%clk 0:03:00.6]} 4... Be7 {[%clk 0:02:41.2]} 5. e3 {[%clk 0:03:00]}
5... Nbd7 {[%clk 0:02:39.2]} 6. Nc3 {[%clk 0:02:58.6]} 6... h6 {[%clk
0:02:39.1]} 7. Bh4 {[%clk 0:02:58.4]} 7... O-O {[%clk 0:02:37.2]} 8. Rc1 {[%clk
0:02:58.5]} 8... c5 {[%clk 0:02:34.4]} 9. cxd5 {[%clk 0:02:58.8]} 9... Nxd5
{[%clk 0:02:31.8]} 10. Bxe7 {[%clk 0:02:58.4]} 10... Nxe7 {[%clk 0:02:30.9]} 11.
Be2 {[%clk 0:02:55.8]} 11... b6 {[%clk 0:02:27.9]} 12. dxc5 {[%clk 0:02:52]}
12... Nxc5 {[%clk 0:02:27]} 13. b4 {[%clk 0:02:51.4]} 13... Qxd1+ {[%clk
0:02:12.7]} 14. Rxd1 {[%clk 0:02:52.3]} 14... Nd7 {[%clk 0:02:11.7]} 15. O-O
{[%clk 0:02:52.2]} 15... Nf6 {[%clk 0:02:07.7]} 16. Ne5 {[%clk 0:02:50.5]} 16...
Bb7 {[%clk 0:02:04.9]} 17. Nd7 {[%clk 0:02:49.9]} 17... Nxd7 {[%clk 0:01:37.1]}
18. Rxd7 {[%clk 0:02:48.9]} 18... Nd5 {[%clk 0:01:37.6]} 19. Nxd5 {[%clk
0:02:38.2]} 19... Bxd5 {[%clk 0:01:37.6]} 20. Bf3 {[%clk 0:02:37.3]} 20... Bxf3
{[%clk 0:01:21]} 21. gxf3 {[%clk 0:02:38.2]} 21... Rfd8 {[%clk 0:01:19.9]} 22.
Rfd1 {[%clk 0:02:36.8]} 22... Rxd7 {[%clk 0:01:19.7]} 23. Rxd7 {[%clk
0:02:37.7]} 23... a5 {[%clk 0:01:17.6]} 24. b5 {[%clk 0:02:35.7]} 24... Rc8
{[%clk 0:01:17.5]} 25. Rb7 {[%clk 0:02:28.3]} 25... Rc2 {[%clk 0:01:17.3]} 26.
a4 {[%clk 0:02:26.1]} 26... Rc4 {[%clk 0:01:17]} 27. Rxb6 {[%clk 0:02:25]} 27...
Rxa4 {[%clk 0:01:17.5]} 28. Rb8+ {[%clk 0:02:24.8]} 28... Kh7 {[%clk 0:01:17.1]}
29. Ra8 {[%clk 0:02:25.4]} 29... Ra1+ {[%clk 0:01:16.2]} 30. Kg2 {[%clk
0:02:25.2]} 30... a4 {[%clk 0:01:16.8]} 31. b6 {[%clk 0:02:25.1]} 31... Rb1
{[%clk 0:01:17.3]} 32. Rxa4 {[%clk 0:02:24.4]} 32... Rxb6 {[%clk 0:01:17.3]} 33.
Ra7 {[%clk 0:02:24.6]} 1/2-1/2